[Event "Late-Titled-Tuesday-Blitz-October-17-2023"]
[Site "Chess.com"]
[Date "2023.10.17"]
[Round "1"]
[White "kirillshevchenko"]
[Black "Necromon"]
[Result "1-0"]
[WhiteElo "2922"]
[BlackElo "2488"]
[TimeControl "180+1"]
[EndTime "14:05:06 PDT"]
[Termination "kirillshevchenko won by resignation"]

1. e4 {[%clk 0:02:53.7]} 1... c5 {[%clk 0:02:43.9]} 2. a3 {[%clk 0:02:52.4]}
2... Nc6 {[%clk 0:02:42.9]} 3. b4 {[%clk 0:02:52.4]} 3... cxb4 {[%clk 0:02:43]}
4. axb4 {[%clk 0:02:53.3]} 4... d5 {[%clk 0:02:43.1]} 5. b5 {[%clk 0:02:51.3]}
5... Ne5 {[%clk 0:02:42.2]} 6. d4 {[%clk 0:02:45.8]} 6... Ng6 {[%clk 0:02:42.2]}
7. exd5 {[%clk 0:02:44.1]} 7... Nf6 {[%clk 0:02:39.9]} 8. c4 {[%clk 0:02:42.1]}
8... e6 {[%clk 0:02:38]} 9. dxe6 {[%clk 0:02:39.7]} 9... Bxe6 {[%clk 0:02:37.3]}
10. Nf3 {[%clk 0:02:35.5]} 10... Rc8 {[%clk 0:02:31.4]} 11. Nbd2 {[%clk
0:02:05.9]} 11... Bb4 {[%clk 0:02:19.4]} 12. Qb3 {[%clk 0:02:00.5]} 12... Qe7
{[%clk 0:02:19.1]} 13. Ba3 {[%clk 0:01:37.7]} 13... Bxc4+ {[%clk 0:02:06.6]} 14.
Qe3 {[%clk 0:01:37.7]} 14... Bxf1 {[%clk 0:01:59.1]} 15. Bxb4 {[%clk 0:01:02.5]}
15... Qxe3+ {[%clk 0:01:53.8]} 16. fxe3 {[%clk 0:01:03.4]} 16... Bxb5 {[%clk
0:01:54.1]} 17. e4 {[%clk 0:00:54.5]} 17... Nf4 {[%clk 0:01:46.8]} 18. Bd6
{[%clk 0:00:49.4]} 18... Nd3+ {[%clk 0:01:41]} 19. Ke2 {[%clk 0:00:49.4]} 19...
Rc3 {[%clk 0:01:33.7]} 20. Rhb1 {[%clk 0:00:47.4]} 20... a6 {[%clk 0:01:20.8]}
21. Rxb5 {[%clk 0:00:47.4]} 21... axb5 {[%clk 0:01:20.8]} 22. Ra8+ {[%clk
0:00:47.5]} 22... Kd7 {[%clk 0:01:21.3]} 23. Rxh8 {[%clk 0:00:48.2]} 23... Kxd6
{[%clk 0:01:21.7]} 24. e5+ {[%clk 0:00:48.8]} 24... Ke6 {[%clk 0:01:18.1]} 25.
exf6 {[%clk 0:00:48.3]} 25... Kxf6 {[%clk 0:01:16.3]} 26. Ne4+ {[%clk
0:00:48.3]} 1-0

[Event "Late-Titled-Tuesday-Blitz-October-17-2023"]
[Site "Chess.com"]
[Date "2023.10.17"]
[Round "1"]
[White "Alexander_Donchenko"]
[Black "angryspacevoid"]
[Result "1-0"]
[WhiteElo "2875"]
[BlackElo "2470"]
[TimeControl "180+1"]
[EndTime "14:05:06 PDT"]
[Termination "Alexander_Donchenko won by resignation"]

1. Nf3 {[%clk 0:03:00.9]} 1... Nc6 {[%clk 0:02:58.3]} 2. c4 {[%clk 0:02:58.8]}
2... e5 {[%clk 0:02:57.1]} 3. Nc3 {[%clk 0:02:59.2]} 3... Nf6 {[%clk 0:02:55.8]}
4. e4 {[%clk 0:02:57]} 4... Bc5 {[%clk 0:02:54.5]} 5. Nxe5 {[%clk 0:02:56.8]}
5... O-O {[%clk 0:02:34.9]} 6. Nxc6 {[%clk 0:02:52.8]} 6... dxc6 {[%clk
0:02:35.8]} 7. Be2 {[%clk 0:02:49.5]} 7... Qd4 {[%clk 0:02:33.3]} 8. O-O {[%clk
0:02:48.7]} 8... Nxe4 {[%clk 0:02:33.7]} 9. Nxe4 {[%clk 0:02:45.5]} 9... Qxe4
{[%clk 0:02:34.6]} 10. d3 {[%clk 0:02:45.6]} 10... Qg6 {[%clk 0:02:33.8]} 11. d4
{[%clk 0:02:43.3]} 11... Rd8 {[%clk 0:02:30.5]} 12. Be3 {[%clk 0:02:42.8]} 12...
Bd6 {[%clk 0:02:22.2]} 13. g3 {[%clk 0:02:33.4]} 13... Bh3 {[%clk 0:02:19.4]}
14. Re1 {[%clk 0:02:29.8]} 14... Re8 {[%clk 0:02:19.4]} 15. Qb3 {[%clk
0:02:23.6]} 15... Rab8 {[%clk 0:01:45.7]} 16. Bd3 {[%clk 0:02:18.5]} 16... Qg4
{[%clk 0:01:44.6]} 17. Qc2 {[%clk 0:02:13.1]} 17... h5 {[%clk 0:01:38.5]} 18.
Be2 {[%clk 0:02:09.9]} 18... Qg6 {[%clk 0:01:10.1]} 19. Qxg6 {[%clk 0:02:09.2]}
19... fxg6 {[%clk 0:01:11]} 20. c5 {[%clk 0:02:03]} 20... Be7 {[%clk 0:01:10.5]}
21. Bf4 {[%clk 0:02:02.9]} 21... Bf6 {[%clk 0:01:10]} 22. Bxc7 {[%clk
0:02:00.8]} 22... Rbc8 {[%clk 0:01:09.1]} 23. Be5 {[%clk 0:02:00.9]} 23... Bxe5
{[%clk 0:01:09.1]} 24. dxe5 {[%clk 0:02:01.8]} 24... Kh7 {[%clk 0:01:07.7]} 25.
f4 {[%clk 0:02:00.4]} 25... Rcd8 {[%clk 0:01:08.3]} 26. Rad1 {[%clk 0:01:59.8]}
26... Bf5 {[%clk 0:01:06.6]} 27. Kf2 {[%clk 0:01:58.4]} 27... Bc2 {[%clk
0:00:58.4]} 28. Rd6 {[%clk 0:01:58]} 28... b6 {[%clk 0:00:57.8]} 29. Rxc6 {[%clk
0:01:55.5]} 29... Rd2 {[%clk 0:00:50.4]} 30. cxb6 {[%clk 0:01:53.9]} 30... Be4
{[%clk 0:00:49.4]} 31. Rc4 {[%clk 0:01:42.6]} 31... Bd5 {[%clk 0:00:46]} 32. Rb4
{[%clk 0:01:42.6]} 32... axb6 {[%clk 0:00:42.9]} 33. Rxb6 {[%clk 0:01:41.8]}
33... Bxa2 {[%clk 0:00:43.4]} 34. Ke3 {[%clk 0:01:41.6]} 34... Rc2 {[%clk
0:00:42.7]} 35. Bd3 {[%clk 0:01:41.9]} 1-0

[Event "Late-Titled-Tuesday-Blitz-October-17-2023"]
[Site "Chess.com"]
[Date "2023.10.17"]
[Round "1"]
[White "Vojtap"]
[Black "SCIM"]
[Result "0-1"]
[WhiteElo "2216"]
[BlackElo "2556"]
[TimeControl "180+1"]
[EndTime "14:05:10 PDT"]
[Termination "SCIM won by resignation"]

1. e4 {[%clk 0:03:00.9]} 1... e5 {[%clk 0:02:49.4]} 2. Nf3 {[%clk 0:03:00.5]}
2... d6 {[%clk 0:02:49.6]} 3. d4 {[%clk 0:02:59.1]} 3... exd4 {[%clk 0:02:50]}
4. Nxd4 {[%clk 0:02:58.4]} 4... Nf6 {[%clk 0:02:50.5]} 5. Nc3 {[%clk 0:02:58.6]}
5... Be7 {[%clk 0:02:50.3]} 6. Be2 {[%clk 0:02:58.3]} 6... O-O {[%clk 0:02:50]}
7. O-O {[%clk 0:02:58.3]} 7... c6 {[%clk 0:02:48.6]} 8. Re1 {[%clk 0:02:55.8]}
8... a5 {[%clk 0:02:47.3]} 9. a4 {[%clk 0:02:52.9]} 9... Na6 {[%clk 0:02:45.7]}
10. Be3 {[%clk 0:02:45.1]} 10... Re8 {[%clk 0:02:44.6]} 11. f4 {[%clk
0:02:37.4]} 11... Bf8 {[%clk 0:02:43.7]} 12. Bf3 {[%clk 0:02:37]} 12... Nc5
{[%clk 0:02:31.9]} 13. Bf2 {[%clk 0:02:31.2]} 13... Qc7 {[%clk 0:02:22.7]} 14.
Kh1 {[%clk 0:02:24.3]} 14... Bd7 {[%clk 0:02:19.7]} 15. Bg3 {[%clk 0:02:23.2]}
15... h5 {[%clk 0:01:52.6]} 16. e5 {[%clk 0:02:13.5]} 16... Ng4 {[%clk
0:01:47.7]} 17. exd6 {[%clk 0:01:45.6]} 17... Bxd6 {[%clk 0:01:46.5]} 18. Qd2
{[%clk 0:01:32.4]} 18... h4 {[%clk 0:01:38.4]} 19. Bxg4 {[%clk 0:01:29]} 19...
Bxg4 {[%clk 0:01:33.6]} 20. Ndb5 {[%clk 0:01:26.5]} 20... cxb5 {[%clk
0:01:32.3]} 21. Nxb5 {[%clk 0:01:26.7]} 21... Rxe1+ {[%clk 0:01:14.9]} 22. Rxe1
{[%clk 0:01:27.6]} 22... Qc6 {[%clk 0:01:08.3]} 23. Nxd6 {[%clk 0:01:22.3]}
23... hxg3 {[%clk 0:01:07.1]} 24. Re7 {[%clk 0:01:09.9]} 24... Rd8 {[%clk
0:01:02.3]} 25. Qe1 {[%clk 0:00:58.8]} 25... Qxd6 {[%clk 0:00:54.2]} 0-1

[Event "Late-Titled-Tuesday-Blitz-October-17-2023"]
[Site "Chess.com"]
[Date "2023.10.17"]
[Round "1"]
[White "as9killer2"]
[Black "morte-negra"]
[Result "1-0"]
[WhiteElo "2518"]
[BlackElo "1941"]
[TimeControl "180+1"]
[EndTime "14:05:11 PDT"]
[Termination "as9killer2 won by resignation"]

1. c4 {[%clk 0:02:59.8]} 1... Nf6 {[%clk 0:02:54.6]} 2. Nc3 {[%clk 0:03:00.2]}
2... e5 {[%clk 0:02:52.1]} 3. Nf3 {[%clk 0:02:59.2]} 3... Nc6 {[%clk 0:02:51]}
4. e3 {[%clk 0:02:58.7]} 4... d5 {[%clk 0:02:41.2]} 5. cxd5 {[%clk 0:02:51.6]}
5... Nxd5 {[%clk 0:02:39.7]} 6. Bb5 {[%clk 0:02:51.9]} 6... f6 {[%clk
0:02:06.5]} 7. Qa4 {[%clk 0:02:36.5]} 7... Ne7 {[%clk 0:02:02.2]} 8. d4 {[%clk
0:02:35.1]} 8... exd4 {[%clk 0:01:47.4]} 9. exd4 {[%clk 0:02:34.7]} 9... Bd7
{[%clk 0:01:43.8]} 10. d5 {[%clk 0:02:33.3]} 10... Ne5 {[%clk 0:01:29.8]} 11.
Nxe5 {[%clk 0:02:27.8]} 11... fxe5 {[%clk 0:01:27.3]} 12. O-O {[%clk 0:02:23.3]}
12... g6 {[%clk 0:00:56.6]} 13. Bg5 {[%clk 0:02:12.9]} 13... a6 {[%clk
0:00:54.4]} 14. Bxd7+ {[%clk 0:02:07.1]} 14... Qxd7 {[%clk 0:00:54.3]} 15. Qe4
{[%clk 0:02:07.4]} 15... Bg7 {[%clk 0:00:53.5]} 16. f4 {[%clk 0:01:47]} 16...
exf4 {[%clk 0:00:44.2]} 17. Rae1 {[%clk 0:01:38.9]} 17... Bf8 {[%clk 0:00:37.2]}
18. d6 {[%clk 0:01:36.3]} 18... cxd6 {[%clk 0:00:36.7]} 19. Nd5 {[%clk
0:01:36.1]} 19... Qf5 {[%clk 0:00:28.5]} 20. Qxf5 {[%clk 0:01:24]} 20... gxf5
{[%clk 0:00:28.4]} 21. Bxe7 {[%clk 0:01:24.3]} 21... Bxe7 {[%clk 0:00:28.5]} 22.
Rxe7+ {[%clk 0:01:24.7]} 1-0

[Event "Late-Titled-Tuesday-Blitz-October-17-2023"]
[Site "Chess.com"]
[Date "2023.10.17"]
[Round "1"]
[White "Giorno"]
[Black "stregachess"]
[Result "1-0"]
[WhiteElo "2523"]
[BlackElo "2067"]
[TimeControl "180+1"]
[EndTime "14:05:16 PDT"]
[Termination "Giorno won by resignation"]

1. b4 {[%clk 0:02:55.4]} 1... d5 {[%clk 0:02:51.8]} 2. Bb2 {[%clk 0:02:48.5]}
2... Nf6 {[%clk 0:02:51.7]} 3. Nf3 {[%clk 0:02:48]} 3... g6 {[%clk 0:02:50.4]}
4. g3 {[%clk 0:02:45.9]} 4... Bg7 {[%clk 0:02:50.4]} 5. Bg2 {[%clk 0:02:46.5]}
5... O-O {[%clk 0:02:47.6]} 6. O-O {[%clk 0:02:47.1]} 6... c6 {[%clk 0:02:45.3]}
7. d3 {[%clk 0:02:45.5]} 7... Nbd7 {[%clk 0:02:08.4]} 8. Nbd2 {[%clk 0:02:45.1]}
8... Re8 {[%clk 0:02:06]} 9. e4 {[%clk 0:02:43.2]} 9... dxe4 {[%clk 0:01:57.3]}
10. dxe4 {[%clk 0:02:43.2]} 10... e5 {[%clk 0:01:56.3]} 11. Qe2 {[%clk
0:02:41.1]} 11... Qc7 {[%clk 0:01:55.9]} 12. Rfd1 {[%clk 0:02:38.8]} 12... b5
{[%clk 0:01:21.5]} 13. a4 {[%clk 0:02:35.3]} 13... a6 {[%clk 0:01:21.2]} 14. c4
{[%clk 0:02:34]} 14... Bb7 {[%clk 0:00:24.9]} 15. axb5 {[%clk 0:02:26.6]} 15...
axb5 {[%clk 0:00:21.8]} 16. c5 {[%clk 0:02:27]} 16... Rxa1 {[%clk 0:00:20.1]}
17. Bxa1 {[%clk 0:02:21.7]} 17... Ra8 {[%clk 0:00:20]} 18. Nb3 {[%clk
0:02:22.4]} 18... Ra4 {[%clk 0:00:17]} 19. Bc3 {[%clk 0:02:20.2]} 19... Ne8
{[%clk 0:00:14.8]} 20. Bh3 {[%clk 0:02:14.6]} 20... Nf8 {[%clk 0:00:14.5]} 21.
Qb2 {[%clk 0:02:13.2]} 21... f6 {[%clk 0:00:12.2]} 22. Ra1 {[%clk 0:02:07.8]}
22... Rxa1+ {[%clk 0:00:10.8]} 23. Qxa1 {[%clk 0:02:07.5]} 23... Bc8 {[%clk
0:00:11.7]} 24. Bxc8 {[%clk 0:01:59.1]} 24... Qxc8 {[%clk 0:00:11.7]} 25. Na5
{[%clk 0:02:00]} 25... Ne6 {[%clk 0:00:11]} 26. Qd1 {[%clk 0:01:54.2]} 26... Nd4
{[%clk 0:00:07.3]} 27. Bxd4 {[%clk 0:01:51.2]} 27... exd4 {[%clk 0:00:07.6]} 28.
Nxd4 {[%clk 0:01:52.1]} 28... f5 {[%clk 0:00:07.2]} 29. Ndxc6 {[%clk 0:01:51.8]}
29... fxe4 {[%clk 0:00:07.3]} 30. Ne7+ {[%clk 0:01:51.8]} 1-0

[Event "Late-Titled-Tuesday-Blitz-October-17-2023"]
[Site "Chess.com"]
[Date "2023.10.17"]
[Round "1"]
[White "Langua_Chess"]
[Black "Zlatan56"]
[Result "0-1"]
[WhiteElo "2496"]
[BlackElo "2947"]
[TimeControl "180+1"]
[EndTime "14:05:21 PDT"]
[Termination "Zlatan56 won on time"]

1. e4 {[%clk 0:02:59.5]} 1... e6 {[%clk 0:02:58.2]} 2. d4 {[%clk 0:02:57.5]}
2... d5 {[%clk 0:02:58.1]} 3. Nd2 {[%clk 0:02:58.2]} 3... h6 {[%clk 0:02:57.3]}
4. Ngf3 {[%clk 0:02:55.5]} 4... Nf6 {[%clk 0:02:55.4]} 5. Bd3 {[%clk 0:02:32.4]}
5... c5 {[%clk 0:02:54.1]} 6. exd5 {[%clk 0:02:27.2]} 6... exd5 {[%clk
0:02:51.3]} 7. O-O {[%clk 0:02:23.5]} 7... c4 {[%clk 0:02:47.2]} 8. Re1+ {[%clk
0:02:23.5]} 8... Be7 {[%clk 0:02:47.4]} 9. Bf1 {[%clk 0:02:20.4]} 9... Nc6
{[%clk 0:02:46]} 10. c3 {[%clk 0:02:05.8]} 10... O-O {[%clk 0:02:43.6]} 11. Ne5
{[%clk 0:02:04.2]} 11... Bf5 {[%clk 0:02:35]} 12. Ndf3 {[%clk 0:01:54.2]} 12...
Ne4 {[%clk 0:02:29.4]} 13. Nxc6 {[%clk 0:01:39.6]} 13... bxc6 {[%clk 0:02:30.3]}
14. Ne5 {[%clk 0:01:39.9]} 14... Bd6 {[%clk 0:02:24.3]} 15. f3 {[%clk
0:01:19.2]} 15... Nf6 {[%clk 0:02:22.5]} 16. Nxc6 {[%clk 0:01:11.3]} 16... Qc7
{[%clk 0:02:22.3]} 17. Ne5 {[%clk 0:01:10.4]} 17... Rab8 {[%clk 0:02:22.8]} 18.
Qa4 {[%clk 0:00:59.6]} 18... Rfe8 {[%clk 0:02:19.1]} 19. Re2 {[%clk 0:00:29.7]}
19... Nd7 {[%clk 0:02:00.1]} 20. Bf4 {[%clk 0:00:21.1]} 20... Nxe5 {[%clk
0:01:56.6]} 21. Bxe5 {[%clk 0:00:20.5]} 21... Bxe5 {[%clk 0:01:55.7]} 22. Rxe5
{[%clk 0:00:11.3]} 22... Rxe5 {[%clk 0:01:54.6]} 23. dxe5 {[%clk 0:00:11.7]}
23... Qb6+ {[%clk 0:01:50.6]} 24. Kh1 {[%clk 0:00:09.9]} 24... Qxb2 {[%clk
0:01:51.5]} 25. Re1 {[%clk 0:00:02.7]} 25... Qxc3 {[%clk 0:01:50.2]} 26. Qd1
{[%clk 0:00:03.4]} 26... Rb1 {[%clk 0:01:43.9]} 0-1

[Event "Late-Titled-Tuesday-Blitz-October-17-2023"]
[Site "Chess.com"]
[Date "2023.10.17"]
[Round "1"]
[White "rasmussvane"]
[Black "imdvb6307"]
[Result "1-0"]
[WhiteElo "2982"]
[BlackElo "2500"]
[TimeControl "180+1"]
[EndTime "14:05:22 PDT"]
[Termination "rasmussvane won on time"]

1. Nf3 {[%clk 0:02:58.7]} 1... d5 {[%clk 0:02:57.4]} 2. g3 {[%clk 0:02:56.6]}
2... c6 {[%clk 0:02:51.4]} 3. Bg2 {[%clk 0:02:56.1]} 3... Bg4 {[%clk 0:02:51]}
4. O-O {[%clk 0:02:56.2]} 4... Nd7 {[%clk 0:02:50.5]} 5. h3 {[%clk 0:02:55.6]}
5... Bh5 {[%clk 0:02:36.4]} 6. d4 {[%clk 0:02:55.4]} 6... e6 {[%clk 0:02:35.3]}
7. c4 {[%clk 0:02:55.4]} 7... Bd6 {[%clk 0:02:06.3]} 8. Nc3 {[%clk 0:02:45.3]}
8... Ngf6 {[%clk 0:02:05.1]} 9. Qb3 {[%clk 0:02:45.2]} 9... Rb8 {[%clk
0:01:22.8]} 10. Nd2 {[%clk 0:02:44.7]} 10... O-O {[%clk 0:01:05.2]} 11. e4
{[%clk 0:02:44.9]} 11... dxe4 {[%clk 0:01:04.9]} 12. Ndxe4 {[%clk 0:02:45.8]}
12... Nxe4 {[%clk 0:01:04.6]} 13. Nxe4 {[%clk 0:02:46.7]} 13... Bc7 {[%clk
0:01:04.6]} 14. Bg5 {[%clk 0:02:41.7]} 14... f6 {[%clk 0:00:59.7]} 15. Be3
{[%clk 0:02:40.9]} 15... Bf7 {[%clk 0:00:52.3]} 16. Rad1 {[%clk 0:02:39.6]}
16... b5 {[%clk 0:00:49.6]} 17. cxb5 {[%clk 0:02:18.3]} 17... Rxb5 {[%clk
0:00:48.3]} 18. Qc2 {[%clk 0:02:16.9]} 18... Rb6 {[%clk 0:00:34.4]} 19. Nc5
{[%clk 0:02:05.9]} 19... Nb8 {[%clk 0:00:24.2]} 20. Rfe1 {[%clk 0:01:59.6]}
20... Re8 {[%clk 0:00:20.5]} 21. Bd2 {[%clk 0:01:50.5]} 21... Rb5 {[%clk
0:00:06.2]} 22. a4 {[%clk 0:01:48.7]} 22... Rxc5 {[%clk 0:00:03.2]} 23. dxc5
{[%clk 0:01:45]} 23... e5 {[%clk 0:00:03.2]} 24. Ba5 {[%clk 0:01:40.4]} 24...
Qc8 {[%clk 0:00:01.4]} 25. Bxc7 {[%clk 0:01:40.5]} 25... Qxc7 {[%clk 0:00:01.8]}
26. Rd6 {[%clk 0:01:41.2]} 1-0

[Event "Late-Titled-Tuesday-Blitz-October-17-2023"]
[Site "Chess.com"]
[Date "2023.10.17"]
[Round "1"]
[White "Skatchkov_V"]
[Black "chessprincesa1"]
[Result "1-0"]
[WhiteElo "2596"]
[BlackElo "2295"]
[TimeControl "180+1"]
[EndTime "14:05:22 PDT"]
[Termination "Skatchkov_V won by resignation"]

1. d4 {[%clk 0:02:59.6]} 1... Nf6 {[%clk 0:02:59.1]} 2. c4 {[%clk 0:02:53]} 2...
e6 {[%clk 0:02:59]} 3. Nf3 {[%clk 0:02:47.2]} 3... d5 {[%clk 0:02:57.9]} 4. g3
{[%clk 0:02:46.1]} 4... h6 {[%clk 0:02:51.1]} 5. Bg2 {[%clk 0:02:45.6]} 5... Bd6
{[%clk 0:02:50.6]} 6. O-O {[%clk 0:02:45.8]} 6... O-O {[%clk 0:02:50.6]} 7. a3
{[%clk 0:02:40.2]} 7... b6 {[%clk 0:02:28]} 8. Nc3 {[%clk 0:02:35.3]} 8... a6
{[%clk 0:02:26.9]} 9. Ne5 {[%clk 0:02:30.9]} 9... Bb7 {[%clk 0:02:26.3]} 10.
cxd5 {[%clk 0:02:26.2]} 10... exd5 {[%clk 0:02:25.5]} 11. Qc2 {[%clk 0:02:25.4]}
11... Nbd7 {[%clk 0:02:21.5]} 12. Nc4 {[%clk 0:02:20]} 12... Re8 {[%clk
0:01:37.8]} 13. Nxd6 {[%clk 0:02:19.5]} 13... cxd6 {[%clk 0:01:38.7]} 14. Qb3
{[%clk 0:02:16.9]} 14... Rc8 {[%clk 0:01:22.7]} 15. Bf4 {[%clk 0:02:14.3]} 15...
Rc4 {[%clk 0:01:09.9]} 16. Nxd5 {[%clk 0:02:04.6]} 16... Bxd5 {[%clk 0:00:52.5]}
17. Bxd5 {[%clk 0:02:03.9]} 17... Nxd5 {[%clk 0:00:51.3]} 18. Qxc4 {[%clk
0:02:03.3]} 18... Nxf4 {[%clk 0:00:51.8]} 19. gxf4 {[%clk 0:02:02.5]} 19... Qh4
{[%clk 0:00:47.5]} 20. Qc6 {[%clk 0:01:57.7]} 20... Nf6 {[%clk 0:00:44.5]} 21.
Qf3 {[%clk 0:01:48.9]} 21... Nh5 {[%clk 0:00:34.5]} 22. e3 {[%clk 0:01:46.2]}
22... g5 {[%clk 0:00:28.3]} 23. fxg5 {[%clk 0:01:35.6]} 23... hxg5 {[%clk
0:00:29.2]} 24. Kh1 {[%clk 0:01:36]} 24... Re6 {[%clk 0:00:27.2]} 25. Rg1 {[%clk
0:01:35.7]} 25... Rf6 {[%clk 0:00:20.5]} 26. Qg4 {[%clk 0:01:35.8]} 26... Qxg4
{[%clk 0:00:15.5]} 27. Rxg4 {[%clk 0:01:36.7]} 27... Rxf2 {[%clk 0:00:14.9]} 28.
Rxg5+ {[%clk 0:01:37.2]} 1-0

[Event "Late-Titled-Tuesday-Blitz-October-17-2023"]
[Site "Chess.com"]
[Date "2023.10.17"]
[Round "1"]
[White "GoltsevDmitry2000"]
[Black "GiorgianBarbosa"]
[Result "1-0"]
[WhiteElo "2681"]
[BlackElo "2371"]
[TimeControl "180+1"]
[EndTime "14:05:24 PDT"]
[Termination "GoltsevDmitry2000 won on time"]

1. e4 {[%clk 0:02:58.6]} 1... c6 {[%clk 0:02:59.3]} 2. d4 {[%clk 0:02:57.3]}
2... d5 {[%clk 0:03:00.2]} 3. Nc3 {[%clk 0:02:57.6]} 3... dxe4 {[%clk
0:03:00.4]} 4. Nxe4 {[%clk 0:02:57.4]} 4... Nf6 {[%clk 0:03:01.3]} 5. Ng3 {[%clk
0:02:57]} 5... g6 {[%clk 0:03:01.2]} 6. Nf3 {[%clk 0:02:56.2]} 6... Bg7 {[%clk
0:03:02.1]} 7. Bc4 {[%clk 0:02:53.9]} 7... O-O {[%clk 0:03:03]} 8. Bg5 {[%clk
0:02:53.5]} 8... Bg4 {[%clk 0:03:02.9]} 9. c3 {[%clk 0:02:53.7]} 9... Nbd7
{[%clk 0:03:02.3]} 10. h3 {[%clk 0:02:52.8]} 10... Bxf3 {[%clk 0:03:01]} 11.
Qxf3 {[%clk 0:02:53.7]} 11... e5 {[%clk 0:03:01.8]} 12. O-O-O {[%clk 0:02:53.6]}
12... exd4 {[%clk 0:02:55.3]} 13. Rxd4 {[%clk 0:02:52.2]} 13... Qa5 {[%clk
0:02:54.7]} 14. Bd2 {[%clk 0:02:42.6]} 14... b5 {[%clk 0:02:43.7]} 15. Bb3
{[%clk 0:02:39.7]} 15... c5 {[%clk 0:02:41]} 16. c4 {[%clk 0:02:31.3]} 16... Qc7
{[%clk 0:02:17.4]} 17. Rh4 {[%clk 0:02:25.1]} 17... bxc4 {[%clk 0:02:02.2]} 18.
Bxc4 {[%clk 0:02:21.7]} 18... Nb6 {[%clk 0:02:02.2]} 19. Bc3 {[%clk 0:02:18.4]}
19... Nxc4 {[%clk 0:01:44.2]} 20. Rxc4 {[%clk 0:02:11.8]} 20... Nd7 {[%clk
0:01:39.6]} 21. Bxg7 {[%clk 0:01:54.9]} 21... Kxg7 {[%clk 0:01:40.5]} 22. Qc3+
{[%clk 0:01:55]} 22... Kg8 {[%clk 0:01:30.9]} 23. Rd1 {[%clk 0:01:48.3]} 23...
Nb6 {[%clk 0:01:05.6]} 24. Rh4 {[%clk 0:01:39.1]} 1-0

[Event "Late-Titled-Tuesday-Blitz-October-17-2023"]
[Site "Chess.com"]
[Date "2023.10.17"]
[Round "1"]
[White "sjoerd893"]
[Black "familijatop71"]
[Result "1-0"]
[WhiteElo "2531"]
[BlackElo "2112"]
[TimeControl "180+1"]
[EndTime "14:05:26 PDT"]
[Termination "sjoerd893 won by resignation"]

1. e4 {[%clk 0:02:58.8]} 1... c5 {[%clk 0:02:59.3]} 2. Nf3 {[%clk 0:02:58.2]}
2... d6 {[%clk 0:02:59.1]} 3. Bb5+ {[%clk 0:02:54.7]} 3... Nd7 {[%clk
0:02:56.2]} 4. d4 {[%clk 0:02:47.8]} 4... cxd4 {[%clk 0:02:55.4]} 5. Qxd4 {[%clk
0:02:48.7]} 5... a6 {[%clk 0:02:34.5]} 6. Bxd7+ {[%clk 0:02:47.7]} 6... Qxd7
{[%clk 0:02:29.6]} 7. Nc3 {[%clk 0:02:44.1]} 7... e6 {[%clk 0:02:25.8]} 8. Nd2
{[%clk 0:02:36.1]} 8... b5 {[%clk 0:02:12.2]} 9. a4 {[%clk 0:02:34.5]} 9... Bb7
{[%clk 0:02:01.7]} 10. axb5 {[%clk 0:02:11.5]} 10... axb5 {[%clk 0:02:00.7]} 11.
Rxa8+ {[%clk 0:02:12.4]} 11... Bxa8 {[%clk 0:02:00.7]} 12. Qb6 {[%clk 0:02:12]}
12... Bc6 {[%clk 0:01:39.3]} 13. Nf3 {[%clk 0:01:58.4]} 13... e5 {[%clk
0:01:26.3]} 14. O-O {[%clk 0:01:43.1]} 14... Be7 {[%clk 0:01:22.5]} 15. Rd1
{[%clk 0:01:39.6]} 15... Bf6 {[%clk 0:01:15.2]} 16. Qb8+ {[%clk 0:01:30.6]}
16... Ke7 {[%clk 0:01:13.9]} 17. Be3 {[%clk 0:01:15.4]} 17... g6 {[%clk
0:01:10.9]} 18. Bc5 {[%clk 0:01:08.4]} 18... dxc5 {[%clk 0:00:52.1]} 19. Rxd7+
{[%clk 0:01:07.1]} 19... Bxd7 {[%clk 0:00:52.5]} 20. Nd5+ {[%clk 0:01:04.3]}
20... Ke6 {[%clk 0:00:27.2]} 21. Qb6+ {[%clk 0:01:04.4]} 1-0

[Event "Late-Titled-Tuesday-Blitz-October-17-2023"]
[Site "Chess.com"]
[Date "2023.10.17"]
[Round "1"]
[White "keepitcoming"]
[Black "Semetey"]
[Result "0-1"]
[WhiteElo "2205"]
[BlackElo "2549"]
[TimeControl "180+1"]
[EndTime "14:05:36 PDT"]
[Termination "Semetey won by resignation"]

1. d4 {[%clk 0:03:00.9]} 1... a6 {[%clk 0:02:56]} 2. Nf3 {[%clk 0:02:58.3]} 2...
b5 {[%clk 0:02:53.1]} 3. a4 {[%clk 0:02:56.5]} 3... Bb7 {[%clk 0:02:51.7]} 4.
axb5 {[%clk 0:02:55.1]} 4... axb5 {[%clk 0:02:52.6]} 5. Rxa8 {[%clk 0:02:53.9]}
5... Bxa8 {[%clk 0:02:53.1]} 6. Bf4 {[%clk 0:02:51.3]} 6... e6 {[%clk
0:02:50.9]} 7. e3 {[%clk 0:02:46.2]} 7... b4 {[%clk 0:02:50.6]} 8. Bd3 {[%clk
0:02:42.9]} 8... Nf6 {[%clk 0:02:50.4]} 9. O-O {[%clk 0:02:42.8]} 9... Be7
{[%clk 0:02:49.4]} 10. Nbd2 {[%clk 0:02:42.9]} 10... d5 {[%clk 0:02:39.9]} 11.
Qa1 {[%clk 0:02:37.8]} 11... Nbd7 {[%clk 0:02:37.6]} 12. Qa7 {[%clk 0:02:28.2]}
12... Bd6 {[%clk 0:02:33.1]} 13. Ne5 {[%clk 0:02:17.8]} 13... O-O {[%clk
0:02:30.5]} 14. h3 {[%clk 0:02:08.5]} 14... Bxe5 {[%clk 0:02:17.1]} 15. dxe5
{[%clk 0:02:07.6]} 15... Ne4 {[%clk 0:02:17]} 16. Nxe4 {[%clk 0:01:59.3]} 16...
dxe4 {[%clk 0:02:17.9]} 17. Bb5 {[%clk 0:01:50.9]} 17... Nb6 {[%clk 0:02:16.9]}
18. Qa5 {[%clk 0:01:44.4]} 18... Qd2 {[%clk 0:02:13.8]} 19. c3 {[%clk
0:01:40.4]} 19... Nd5 {[%clk 0:02:07.1]} 20. cxb4 {[%clk 0:01:32.2]} 20... Nxf4
{[%clk 0:02:05]} 21. exf4 {[%clk 0:01:30.1]} 21... e3 {[%clk 0:01:55.9]} 22.
Qxc7 {[%clk 0:01:12.1]} 22... e2 {[%clk 0:01:53.7]} 23. Bxe2 {[%clk 0:01:09.4]}
23... Qxe2 {[%clk 0:01:53.7]} 24. Qc3 {[%clk 0:00:58.4]} 24... Qe4 {[%clk
0:01:53.2]} 25. f3 {[%clk 0:00:56.7]} 25... Qxf4 {[%clk 0:01:53.4]} 26. Rd1
{[%clk 0:00:53.2]} 26... Bd5 {[%clk 0:01:51.1]} 27. b5 {[%clk 0:00:51.6]} 27...
Qa4 {[%clk 0:01:42]} 28. Qd3 {[%clk 0:00:47.4]} 28... Rb8 {[%clk 0:01:37.8]} 29.
Rc1 {[%clk 0:00:35.2]} 29... g6 {[%clk 0:01:35.6]} 30. Rc5 {[%clk 0:00:30.4]}
30... Qb4 {[%clk 0:01:29.3]} 31. Kh2 {[%clk 0:00:17.9]} 31... Qxc5 {[%clk
0:01:28.2]} 0-1